bitfinex-derivatives/quotes_BNBF0:USTF0_20250609
["timestamp","ask_amount","ask_price","bid_price","bid_amount"]
[1749503695541,1.16213233,663.55,662.68,1.49786835]
[1749503695842,1.49848019,663.55,662.68,1.49786835]
[1749503696241,2.66061072,663.55,662.68,1.49786835]
[1749503696441,0.49386878,663.54,662.68,1.49786835]
[1749503696836,2.66065036,663.54,662.68,1.49786835]
[1749503697037,2.66065036,663.53,662.68,1.49786835]
[1749503697238,2.66065369,663.52,662.68,1.49786835]
[1749503697537,2.66065369,663.51,662.68,1.49786835]
[1749503697736,2.66065369,663.5,662.75,1.49786835]
[1749503697938,2.66065369,663.49,662.77,1.49786835]
[1749503698141,2.66065369,663.48,662.78,1.49786835]
[1749503698337,1.65585288,663.47,662.78,1.49786835]
[1749503698541,1.49899846,663.54,662.78,1.49786835]
[1749503698839,0.49386295,663.54,662.78,1.49786835]
[1749503699139,1.49899783,663.55,662.78,1.49786835]
[1749503699439,1.49899923,663.55,662.78,1.49786835]
[1749503699641,2.66097165,663.55,662.78,1.49786835]
[1749503699842,0.49386372,663.54,662.78,1.49786835]
[1749503700042,1.49903878,663.54,662.78,1.49786835]
[1749503700242,1.65544188,663.54,662.78,1.49786835]
[1749503700443,1.49903878,663.55,662.83,1.49786835]
[1749503700640,1.4990383,663.55,662.83,1.49786835]
[1749503700840,2.66062498,663.55,662.83,1.49786835]
[1749503701045,0.49385512,663.54,662.82,1.49786835]
[1749503702041,1.504,663.56,662.82,1.49786835]
[1749503702344,0.26239001,663.47,662.82,1.49786835]
[1749503703040,0.26239001,663.47,662.81,1.49786835]
[1749503704042,0.26239001,663.47,662.88,1.49786835]
[1749503704642,0.26239001,663.47,662.86,1.49786835]
[1749503704942,0.26239001,663.47,662.8,1.49786835]
[1749503705347,1.00766752,663.47,662.8,1.49786835]
[1749503705646,2.66384895,663.55,662.81,1.49786835]
[1749503705844,1.50164144,663.54,662.81,1.49786835]
[1749503706046,0.49398952,663.54,662.88,1.49786835]
[1749503706446,0.49398952,663.54,662.32,0.26239001]
[1749503706447,0.49380247,663.54,662.87,1.49786835]
[1749503706843,2.66370802,663.55,662.87,1.49786835]
[1749503707048,1.50135087,663.54,662.87,1.49786835]
[1749503707243,1.16235743,663.55,662.87,1.49786835]
[1749503707444,1.50133954,663.55,662.87,1.49786835]
[1749503707943,1.50133954,663.55,662.88,1.49786835]
[1749503708143,2.66369333,663.55,662.87,1.49786835]
[1749503708344,0.49379139,663.54,662.86,1.49786835]
[1749503708546,1.50134076,663.55,662.87,1.49786835]
[1749503708848,1.00957347,663.55,662.87,1.49786835]
[1749503709147,1.504,663.56,662.99,1.49786835]
[1749503709342,1.504,663.56,662.98,1.49786835]
[1749503709744,1.504,663.56,662.99,1.49786835]
[1749503710146,1.504,663.56,663.0,1.49786835]
[1749503710550,1.504,663.56,662.99,1.49786835]
[1749503710747,1.22,663.55,662.99,1.49786835]
[1749503712050,1.22,663.55,663.1,1.49786835]
[1749503712251,1.22,663.55,663.11,1.49786835]
[1749503712454,1.22,663.55,663.1,1.49786835]
[1749503712849,1.22,663.55,663.09,1.49786835]
[1749503714253,1.22,663.55,663.08,1.49786835]
[1749503715357,1.22,663.55,663.07,1.49786835]
[1749503715557,1.22,663.55,663.08,1.49786835]
[1749503716754,1.22,663.55,663.05,1.49786835]
[1749503717357,1.22,663.55,663.04,1.49786835]
[1749503718357,1.22,663.55,663.03,1.49786835]
[1749503718855,1.22,663.55,663.04,1.49786835]
[1749503721258,1.22,663.55,663.03,1.49786835]
[1749503721860,1.22,663.55,663.04,1.49786835]
[1749503723459,1.22,663.55,663.03,1.49786835]
[1749503726360,1.22,663.55,663.04,1.49786835]
[1749503726560,1.22,663.55,663.06,1.49786835]
[1749503727455,1.22,663.55,663.05,1.49786835]
[1749503729060,1.22,663.55,663.04,1.49786835]
[1749503729259,1.22,663.55,663.05,1.49786835]
[1749503729458,1.22,663.55,663.04,1.49786835]
[1749503730962,1.22,663.55,662.91,2.26204425]
[1749503730963,1.22,663.55,663.06,1.49786835]
[1749503732465,1.22,663.55,663.07,1.49786835]
[1749503734666,1.22,663.55,663.06,1.49786835]
[1749503736466,1.22,663.55,663.07,1.49786835]
[1749503736866,1.22,663.55,663.08,1.49786835]
[1749503738472,1.22,663.55,663.1,1.49786835]
[1749503744574,1.22,663.55,663.11,1.49786835]
[1749503747481,1.22,663.55,663.1,1.49786835]
[1749503747682,1.22,663.55,663.11,1.49786835]
[1749503747881,1.22,663.55,663.1,1.49786835]
[1749503748186,1.22,663.55,663.11,1.49786835]
[1749503750489,1.22,663.55,663.0,2.26204425]
[1749503750490,1.22,663.55,663.1,1.49786835]
[1749503750688,1.22,663.55,662.89,1.49786835]
[1749503752090,1.22,663.55,662.88,1.49786835]
[1749503752591,1.22,663.55,662.89,1.49786835]
[1749503752788,1.22,663.55,662.88,1.49786835]
[1749503754592,1.22,663.55,662.86,1.49786835]
[1749503754789,1.22,663.55,662.87,1.49786835]
[1749503755492,1.22,663.55,662.88,1.49786835]
[1749503755691,1.22,663.55,662.87,1.49786835]
[1749503756093,1.22,663.55,662.88,1.49786835]
[1749503757095,1.22,663.55,663.01,1.49786835]
[1749503759589,1.22,663.55,663.02,1.49786835]
[1749503760790,1.22,663.55,663.03,1.49786835]
[1749503761693,1.22,663.55,663.04,1.49786835]
[1749503762288,1.22,663.55,663.06,1.49786835]
[1749503762492,1.22,663.55,662.89,2.26204425]
[1749503762493,1.22,663.55,663.08,1.49786835]
[1749503762689,1.22,663.55,663.09,1.49786835]
[1749503763390,1.22,663.55,663.07,1.49786835]
[1749503764396,1.22,663.55,663.11,1.49786835]
[1749503764890,1.18269231,663.62,663.11,1.49786835]
[1749503765091,2.69300751,663.64,663.05,1.49786835]
[1749503765291,0.49709225,663.63,663.05,1.49786835]
[1749503765491,1.51031526,663.64,663.06,1.49786835]
[1749503765692,2.69300752,663.64,663.06,1.49786835]
[1749503765890,0.49709249,663.63,663.06,1.49786835]
[1749503766190,0.49709249,663.63,662.87,2.26204425]
[1749503766191,0.49743776,663.63,663.05,1.49786835]
[1749503766391,0.49743776,663.63,663.06,1.49786835]
[1749503766590,1.1829356,663.64,663.06,1.49786835]
[1749503766792,1.0131559,663.64,663.06,1.49786835]
[1749503766997,1.66,663.65,663.06,1.49786835]
[1749503767393,1.142,663.64,663.07,1.49786835]
[1749503767692,3.83553142,663.64,663.07,1.49786835]
[1749503767898,2.69351715,663.63,663.07,1.49786835]
[1749503768192,2.19606174,663.62,663.07,1.49786835]
[1749503768397,1.18292088,663.61,663.08,1.49786835]
[1749503768696,1.68034841,663.63,663.09,1.49786835]
[1749503768893,1.50926405,663.63,663.09,1.49786835]
[1749503769196,0.49743008,663.63,663.09,1.49786835]
[1749503769493,2.69218166,663.63,663.09,1.49786835]
[1749503769696,0.49743008,663.62,663.09,1.49786835]
[1749503769889,1.01183397,663.63,663.09,1.49786835]
[1749503770095,1.142,663.64,663.09,1.49786835]
[1749503770096,2.82274366,663.64,663.09,1.49786835]
[1749503770291,2.6929105,663.63,663.09,1.49786835]
[1749503770492,1.01233957,663.62,663.09,1.49786835]
[1749503770698,2.19548674,663.63,663.09,1.49786835]
[1749503770897,0.4973857,663.62,663.1,1.49786835]
[1749503771094,0.4973857,663.63,663.1,1.49786835]
[1749503771294,2.6928682,663.63,663.1,1.49786835]
[1749503771498,1.18163761,663.62,663.1,1.49786835]
[1749503771698,2.69128361,663.63,663.1,1.49786835]
[1749503771894,1.01228347,663.62,663.08,1.49786835]
[1749503772198,2.69128017,663.63,663.08,1.49786835]
[1749503772400,1.50964366,663.62,663.08,1.49786835]
[1749503772599,1.50964003,663.63,663.08,1.49786835]
[1749503772898,2.69127654,663.63,663.08,1.49786835]
[1749503773096,1.142,663.64,663.08,1.49786835]
[1749503773097,1.67898922,663.62,663.08,1.49786835]
[1749503773297,0.49735789,663.63,663.09,1.49786835]
[1749503773498,3.8327007,663.64,663.09,1.49786835]
[1749503773696,2.69068777,663.63,663.09,1.49786835]
[1749503773898,1.50906472,663.62,663.1,1.49786835]
[1749503774100,1.509047,663.63,663.11,1.49786835]
[1749503774300,2.6906674,663.63,663.11,1.49786835]
[1749503774496,2.69059929,663.62,663.1,1.49786835]
[1749503774796,2.69059929,663.61,663.16,1.49786835]
[1749503775097,1.18004797,663.6,663.16,1.49786835]
[1749503775299,1.50837339,663.63,663.16,1.49786835]
[1749503775498,0.49716536,663.63,663.16,1.49786835]
[1749503775698,2.32203715,663.64,663.16,1.49786835]
[1749503775899,3.83034937,663.64,663.16,1.49786835]
[1749503776097,2.68834937,663.63,663.16,1.49786835]
[1749503776299,0.49716225,663.62,663.15,1.49786835]
[1749503776796,1.50877294,663.62,663.15,1.49786835]
[1749503777096,1.142,663.64,663.37,1.49786835]
[1749503777300,1.142,663.64,663.39,1.49786835]
[1749503777596,1.142,663.64,663.41,1.49786835]
[1749503777800,1.142,663.64,663.42,1.49786835]
[1749503777999,1.142,663.64,663.43,1.49786835]
[1749503778201,1.142,663.64,663.4,1.49786835]
[1749503778602,1.142,663.64,663.39,1.49786835]
[1749503779198,1.142,663.64,663.38,1.49786835]
[1749503779699,1.142,663.64,663.35,1.49786835]
[1749503780198,1.142,663.64,663.3,1.49786835]
[1749503780801,1.142,663.64,663.32,1.49786835]
[1749503781402,1.142,663.64,663.31,1.49786835]
[1749503781801,1.142,663.64,663.3,1.49786835]
[1749503782200,1.142,663.64,663.29,1.49786835]
[1749503783102,1.142,663.64,663.28,1.49786835]
[1749503783904,1.142,663.64,663.27,1.49786835]
[1749503784300,1.142,663.64,663.26,1.49786835]
[1749503784903,1.142,663.64,663.29,1.49786835]
[1749503785104,1.142,663.64,663.28,1.49786835]
[1749503785600,1.142,663.64,663.27,1.49786835]
[1749503786300,1.142,663.64,663.26,1.49786835]
[1749503787405,1.142,663.64,663.25,1.49786835]
[1749503788005,1.142,663.64,663.24,1.49786835]
[1749503788301,1.142,663.64,663.06,2.26204425]
[1749503788302,1.142,663.64,663.23,1.49786835]
[1749503788903,1.142,663.64,663.21,1.49786835]
[1749503789505,1.192,663.63,663.21,1.49786835]
[1749503789805,1.192,663.63,663.2,1.49786835]
[1749503790108,1.192,663.63,663.19,1.49786835]
[1749503790404,1.192,663.63,663.2,1.49786835]
[1749503791007,1.192,663.63,663.19,1.49786835]
[1749503791208,1.192,663.63,663.18,1.49786835]
[1749503792104,1.192,663.63,663.16,1.49786835]
[1749503792309,1.192,663.63,663.15,1.49786835]
[1749503792907,1.192,663.63,663.11,1.49786835]
[1749503793109,1.192,663.63,662.61,0.26223381]
[1749503793110,1.192,663.63,663.05,1.49786835]
[1749503793406,1.192,663.63,663.02,1.49786835]
[1749503793909,1.192,663.63,663.0,1.49786835]
[1749503794104,1.192,663.63,663.01,1.49786835]
[1749503794410,1.192,663.63,663.0,1.49786835]
[1749503794609,1.192,663.63,662.99,1.49786835]
[1749503795710,1.192,663.63,663.01,1.49786835]
[1749503796108,1.192,663.63,663.03,1.49786835]
[1749503796307,1.192,663.63,663.05,1.49786835]
[1749503796509,1.192,663.63,663.04,1.49786835]
[1749503797313,1.192,663.63,663.05,1.49786835]
[1749503798916,1.192,663.63,663.07,1.49786835]
[1749503799319,1.192,663.63,663.13,1.49786835]
[1749503799814,1.192,663.63,663.12,1.49786835]
[1749503800112,1.192,663.63,663.14,1.49786835]
[1749503800516,1.192,663.63,663.16,1.49786835]
[1749503800718,1.192,663.63,663.17,1.49786835]
[1749503801017,1.192,663.63,663.14,1.49786835]
[1749503801514,1.192,663.63,663.19,1.49786835]
[1749503801714,1.192,663.63,663.21,1.49786835]
[1749503801915,1.192,663.63,663.23,1.49786835]
[1749503802117,1.192,663.63,663.26,1.49786835]
[1749503802913,1.192,663.63,663.27,1.49786835]
[1749503803216,1.192,663.63,663.26,1.49786835]
[1749503803815,1.192,663.63,663.27,1.49786835]
[1749503804216,1.192,663.63,663.26,1.49786835]
[1749503806121,1.192,663.63,663.23,1.49786835]
[1749503807021,1.192,663.63,663.24,1.49786835]
[1749503807522,1.192,663.63,663.22,1.49786835]
[1749503808222,1.192,663.63,663.2,1.49786835]
[1749503809529,1.192,663.63,663.18,1.49786835]
[1749503810623,1.192,663.63,663.17,1.49786835]
[1749503810821,1.142,663.64,663.17,1.49786835]
[1749503811126,1.142,663.64,663.16,1.49786835]
[1749503811420,1.142,663.64,663.17,1.49786835]
[1749503811622,1.142,663.64,663.15,1.49786835]
[1749503812225,1.142,663.64,663.16,1.49786835]
[1749503812419,1.142,663.64,663.17,1.49786835]
[1749503812626,1.142,663.64,663.19,1.49786835]
[1749503813127,1.142,663.64,663.23,1.49786835]
[1749503813621,1.142,663.64,663.22,1.49786835]
[1749503813821,1.142,663.64,663.23,1.49786835]
[1749503815225,1.142,663.64,663.24,1.49786835]
[1749503816225,1.142,663.64,663.23,1.49786835]
[1749503816422,1.142,663.64,663.24,1.49786835]
[1749503816722,1.142,663.64,663.25,1.49786835]
[1749503817226,1.142,663.64,663.24,1.49786835]
[1749503817521,1.142,663.64,663.25,1.49786835]
[1749503818022,1.142,663.64,663.23,1.49786835]
[1749503818425,1.912,663.95,663.23,1.49786835]
[1749503819920,1.912,663.95,663.24,1.49786835]
[1749503821223,1.912,663.95,663.23,1.49786835]
[1749503822027,1.666,663.94,663.23,1.49786835]
[1749503822325,1.666,663.94,663.22,1.49786835]
[1749503822727,1.666,663.94,663.23,1.49786835]
[1749503826329,1.666,663.94,663.24,1.49786835]
[1749503827234,1.666,663.94,663.25,1.49786835]
[1749503827430,1.666,663.94,663.24,1.49786835]
[1749503827734,1.666,663.94,663.25,1.49786835]
[1749503827932,1.666,663.94,663.24,1.49786835]
[1749503828933,1.666,663.94,663.23,1.49786835]
[1749503829236,1.666,663.94,663.24,1.49786835]
[1749503829432,1.666,663.94,663.25,1.49786835]
[1749503830231,1.666,663.94,663.26,1.49786835]
[1749503830431,1.666,663.94,663.27,1.49786835]
[1749503831130,1.666,663.94,663.29,1.49786835]
[1749503831332,1.666,663.94,663.3,1.49786835]
[1749503832243,1.666,663.94,663.31,1.49786835]
[1749503833333,1.666,663.94,663.33,1.49786835]
[1749503834438,1.666,663.94,663.34,1.49786835]
[1749503834637,1.666,663.94,663.35,1.49786835]
[1749503835238,1.666,663.94,663.36,1.49786835]
[1749503835738,1.666,663.94,663.27,1.49786835]
[1749503836135,1.666,663.94,663.29,1.49786835]
[1749503836335,1.666,663.94,663.3,1.49786835]
[1749503836935,1.666,663.94,663.32,1.49786835]
[1749503837439,1.666,663.94,663.33,1.49786835]
[1749503838144,1.666,663.94,663.34,1.49786835]
[1749503840442,1.666,663.94,663.33,1.49786835]
[1749503841444,1.666,663.94,663.32,1.49786835]
[1749503842042,1.666,663.94,663.31,1.49786835]
[1749503842242,1.666,663.94,663.3,1.49786835]
[1749503843243,1.666,663.94,663.29,1.49786835]
[1749503844850,1.666,663.94,663.28,1.49786835]
[1749503845647,1.666,663.94,663.33,1.49786835]
[1749503846147,1.666,663.94,663.36,1.49786835]
[1749503847248,1.666,663.94,663.35,1.49786835]
[1749503847447,1.666,663.94,663.36,1.49786835]
[1749503848049,1.564,663.95,663.36,1.49786835]
[1749503848247,1.564,663.95,662.61,0.26223381]
[1749503848248,1.564,663.95,663.38,1.49786835]
[1749503849351,1.564,663.95,663.4,1.49786835]
[1749503850046,1.564,663.95,663.41,1.49786835]
[1749503850450,1.467,663.94,663.41,1.49786835]
[1749503850651,1.467,663.94,663.42,1.49786835]
[1749503852750,1.467,663.94,663.43,1.49786835]
[1749503854155,1.467,663.94,663.44,1.49786835]
[1749503854854,1.467,663.94,663.43,1.49786835]
[1749503855154,1.467,663.94,663.44,1.49786835]
[1749503856154,1.467,663.94,663.48,1.49786835]
[1749503856651,1.467,663.94,663.49,1.49786835]
[1749503856955,1.467,663.94,663.47,1.49786835]
[1749503858954,1.467,663.94,663.45,1.49786835]
[1749503859158,1.467,663.94,663.46,1.49786835]
[1749503860658,1.467,663.94,663.45,1.49786835]
[1749503861756,1.232,663.93,663.45,1.49786835]
[1749503862357,1.232,663.93,663.47,1.49786835]
[1749503862660,1.232,663.93,663.46,1.49786835]
[1749503863257,1.232,663.93,663.48,1.49786835]
[1749503863659,1.232,663.93,663.49,1.49786835]
[1749503863855,1.232,663.93,663.5,1.49786835]
[1749503864457,1.232,663.93,663.52,1.49786835]
[1749503864962,1.232,663.93,663.53,1.49786835]
[1749503865162,1.232,663.93,663.57,1.49786835]
[1749503865362,1.232,663.93,663.55,1.49786835]
[1749503865559,1.232,663.93,663.56,1.49786835]
[1749503865763,1.232,663.93,663.59,1.49786835]
[1749503865961,1.232,663.93,663.6,1.49786835]
[1749503866365,1.232,663.93,662.71,3.77007376]
[1749503866366,1.232,663.93,663.62,1.49786835]
[1749503866564,1.232,663.93,663.63,1.49786835]
[1749503867160,1.232,663.93,663.62,1.49786835]
[1749503867561,1.232,663.93,663.6,1.49786835]
[1749503868668,1.232,663.93,663.58,1.49786835]
[1749503868869,1.232,663.93,663.6,1.49786835]
[1749503869164,1.232,663.93,663.59,1.49786835]
[1749503869864,1.232,663.93,663.58,1.49786835]
[1749503870269,1.232,663.93,663.57,1.49786835]
[1749503870469,1.232,663.93,663.55,1.49786835]
[1749503870867,1.232,663.93,663.54,1.49786835]
[1749503871168,1.232,663.93,663.53,1.49786835]
[1749503871971,1.232,663.93,663.51,1.49786835]
[1749503872972,1.232,663.93,663.52,1.49786835]
[1749503873172,1.232,663.93,663.51,1.49786835]
[1749503873767,1.232,663.93,663.48,1.49786835]
[1749503873970,1.232,663.93,663.46,1.49786835]
[1749503874469,1.232,663.93,663.45,1.49786835]
[1749503875070,1.232,663.93,663.44,1.49786835]
[1749503875273,1.232,663.93,663.27,2.26204425]
[1749503875274,1.232,663.93,663.42,1.49786835]
[1749503875469,1.206,663.92,663.42,1.49786835]
[1749503875669,1.206,663.92,663.45,1.49786835]
[1749503876268,1.206,663.92,663.44,1.49786835]
[1749503877380,1.206,663.92,663.42,1.49786835]
[1749503878073,1.206,663.92,663.43,1.49786835]
[1749503878473,1.206,663.92,663.41,1.49786835]
[1749503878676,1.206,663.92,663.4,1.49786835]
[1749503880475,1.206,663.92,663.39,1.49786835]
[1749503881377,1.206,663.92,663.4,1.49786835]
[1749503881573,1.206,663.92,663.41,1.49786835]
[1749503881773,1.206,663.92,663.4,1.49786835]
[1749503881978,1.605,663.91,663.4,1.49786835]
[1749503882976,1.605,663.91,662.61,0.26223381]
[1749503882977,1.605,663.91,663.39,1.49786835]
[1749503883680,1.605,663.91,663.4,1.49786835]
[1749503884177,1.605,663.91,663.39,1.49786835]
[1749503884880,1.605,663.91,663.4,1.49786835]
[1749503885281,1.605,663.91,663.42,1.49786835]
[1749503885877,1.605,663.91,663.45,1.49786835]
[1749503886081,1.605,663.91,663.44,1.49786835]
[1749503886482,1.605,663.91,663.43,1.49786835]
[1749503886681,1.605,663.91,663.44,1.49786835]
[1749503886882,1.605,663.91,663.43,1.49786835]
[1749503887283,1.605,663.91,663.41,1.49786835]
[1749503888487,1.605,663.91,663.4,1.49786835]
[1749503888684,1.605,663.91,663.37,1.49786835]
[1749503889182,1.605,663.91,663.2,2.26204425]
[1749503889183,1.605,663.91,663.38,1.49786835]
[1749503889385,1.605,663.91,663.35,1.49786835]
[1749503890590,1.605,663.91,663.33,1.49786835]
[1749503891489,1.605,663.91,663.32,1.49786835]
[1749503893490,1.605,663.91,663.31,1.49786835]
[1749503893689,1.605,663.91,663.3,1.49786835]
[1749503895992,1.605,663.91,663.29,1.49786835]
[1749503897494,1.605,663.91,663.28,1.49786835]
[1749503897793,1.605,663.91,663.33,1.49786835]
[1749503897993,1.605,663.91,663.46,1.49786835]
[1749503898193,1.605,663.91,663.47,1.49786835]
[1749503898493,1.605,663.91,663.5,1.49786835]
[1749503899692,1.605,663.91,663.51,1.49786835]
[1749503899892,1.605,663.91,663.5,1.49786835]
[1749503900390,1.605,663.91,663.49,1.49786835]
[1749503900693,1.605,663.91,663.51,1.49786835]
[1749503900894,1.605,663.91,663.52,1.49786835]
[1749503901494,1.605,663.91,663.5,1.49786835]
[1749503902091,1.605,663.91,663.49,1.49786835]
[1749503902590,1.605,663.91,663.48,1.49786835]
[1749503903794,1.605,663.91,663.46,1.49786835]
[1749503907494,1.605,663.91,663.47,1.49786835]
[1749503907789,1.605,663.91,663.46,1.49786835]
[1749503908190,1.605,663.91,663.45,1.49786835]
[1749503909200,1.605,663.91,663.44,1.49786835]
[1749503910694,1.605,663.91,663.45,1.49786835]
[1749503910896,1.605,663.91,663.46,1.49786835]
[1749503911092,1.605,663.91,663.45,1.49786835]
[1749503911395,1.605,663.91,663.46,1.49786835]
[1749503911592,1.605,663.91,663.51,1.49786835]
[1749503911892,1.605,663.91,663.52,1.49786835]
[1749503914297,1.605,663.91,663.51,1.49786835]
[1749503914497,1.605,663.91,663.52,1.49786835]
[1749503915093,1.605,663.91,663.53,1.49786835]
[1749503915592,1.605,663.91,663.62,1.49786835]
[1749503915794,1.605,663.91,663.63,1.49786835]
[1749503916798,1.395,663.9,663.63,1.49786835]
[1749503918498,1.395,663.9,663.57,1.49786835]
[1749503918696,1.395,663.9,663.51,1.49786835]
[1749503918900,1.395,663.9,663.5,1.49786835]
[1749503919696,1.395,663.9,663.49,1.49786835]
[1749503919999,1.395,663.9,663.51,1.49786835]
[1749503920496,1.395,663.9,663.52,1.49786835]
[1749503920700,1.395,663.9,663.51,1.49786835]
[1749503920900,1.395,663.9,663.49,1.49786835]
[1749503921101,1.395,663.9,663.5,1.49786835]
[1749503922196,1.395,663.9,663.48,1.49786835]
[1749503923200,1.395,663.9,663.5,1.49786835]
[1749503924107,1.395,663.9,663.51,1.49786835]
[1749503924307,1.395,663.9,663.5,1.49786835]
[1749503925008,1.395,663.9,663.51,1.49786835]
[1749503926208,1.395,663.9,663.49,1.49786835]
[1749503926404,1.395,663.9,663.48,1.49786835]
[1749503927408,1.395,663.9,663.46,1.49786835]
[1749503927608,1.395,663.9,663.48,1.49786835]
[1749503928407,1.395,663.9,663.45,1.49786835]
[1749503928706,1.395,663.9,663.54,1.49786835]
[1749503929110,1.395,663.9,663.55,1.49786835]
[1749503929309,1.395,663.9,663.62,1.49786835]
[1749503929513,1.395,663.9,663.61,1.49786835]
[1749503929808,1.395,663.9,663.63,1.49786835]
[1749503930612,1.395,663.9,663.61,1.49786835]
[1749503931310,1.395,663.9,663.62,1.49786835]
[1749503931708,1.395,663.9,663.6,1.49786835]
[1749503932908,1.395,663.9,663.58,1.49786835]
[1749503933911,1.395,663.9,663.57,1.49786835]
[1749503934415,1.395,663.9,663.56,1.49786835]
[1749503934711,1.395,663.9,663.55,1.49786835]
[1749503934915,1.395,663.9,663.53,1.49786835]
[1749503935112,1.395,663.9,663.49,1.49786835]
[1749503935912,1.395,663.9,663.51,1.49786835]
[1749503936121,1.395,663.9,663.49,1.49786835]
[1749503938217,1.395,663.9,663.3,2.26204425]
[1749503938612,1.395,663.9,663.51,1.49320897]
[1749503939012,1.395,663.9,663.5,1.49320897]
[1749503940314,1.395,663.9,663.51,1.49320897]
[1749503940617,1.395,663.9,663.49,1.49320897]
[1749503941013,1.395,663.9,663.5,1.49320897]
[1749503941313,1.391,663.89,663.49,1.49320897]
[1749503941717,1.391,663.89,663.48,1.49320897]
[1749503942914,1.391,663.89,663.47,1.49320897]
[1749503944721,1.391,663.89,663.49,1.49320897]
[1749503946117,1.391,663.89,663.48,1.49320897]
[1749503947021,1.391,663.89,663.49,1.49320897]
[1749503947223,1.391,663.89,663.5,1.49320897]
[1749503947922,1.391,663.89,663.51,1.49320897]
[1749503949221,1.391,663.89,663.5,1.49320897]
[1749503949427,1.391,663.89,663.49,1.49320897]
[1749503949724,1.391,663.89,663.5,1.49320897]
[1749503950325,1.391,663.89,663.49,1.49320897]
[1749503950624,1.391,663.89,663.5,1.49320897]
[1749503951025,1.391,663.89,663.49,1.49320897]
[1749503951224,1.391,663.89,663.52,1.49320897]
[1749503951426,1.391,663.89,663.5,1.49320897]
[1749503951625,1.391,663.89,663.51,1.49320897]
[1749503952424,1.391,663.89,663.48,1.49320897]
[1749503952627,1.391,663.89,663.51,1.49320897]
[1749503952922,1.391,663.89,663.48,1.49320897]
[1749503953122,1.391,663.89,663.49,1.49320897]
[1749503954221,1.391,663.89,663.54,1.49320897]
[1749503954426,1.391,663.89,663.53,1.49320897]
[1749503954627,1.391,663.89,663.55,1.49320897]
[1749503954822,1.391,663.89,662.72,3.77007376]
[1749503954823,1.391,663.89,663.59,1.49320897]
[1749503955023,1.391,663.89,663.6,1.49320897]
[1749503955528,1.391,663.89,663.61,1.49320897]
[1749503956124,1.391,663.89,663.6,1.49320897]
[1749503956328,1.391,663.89,663.65,1.49320897]
[1749503957628,1.391,663.89,663.62,1.49320897]
[1749503958832,1.391,663.89,663.64,1.49320897]
[1749503959928,1.391,663.89,662.89,3.77007376]
[1749503959929,1.391,663.89,663.68,1.49320897]
[1749503962029,1.391,663.89,663.65,1.49320897]
[1749503962227,0.49986308,664.16,663.65,1.49320897]
[1749503962228,2.68284686,664.18,663.65,1.49320897]
[1749503962433,2.68284617,664.17,663.65,1.49320897]
[1749503962729,2.68284617,664.16,663.65,1.49320897]
[1749503962932,1.17282783,664.15,663.65,1.49320897]
[1749503963232,2.68305432,664.18,663.62,1.49320897]
[1749503963433,0.50008209,664.17,663.62,1.49320897]
[1749503963728,2.68288986,664.17,663.62,1.49320897]
[1749503963930,2.68287765,664.16,663.63,1.49320897]
[1749503964129,1.17285346,664.15,663.6,1.49320897]
[1749503964333,2.68288392,664.18,663.6,1.49320897]
[1749503964630,0.50008215,664.17,663.6,1.49320897]
[1749503964830,2.29608215,664.17,663.6,1.49320897]
[1749503965029,1.17285346,664.16,663.6,1.49320897]
[1749503965231,2.68157775,664.16,663.58,1.49320897]
[1749503965436,1.17162028,664.15,663.58,1.49320897]
[1749503965633,2.68157204,664.16,663.58,1.49320897]
[1749503965832,1.17162026,664.15,663.58,1.49320897]
[1749503966037,1.50999247,664.16,663.58,1.49320897]
[1749503966337,2.68161273,664.16,663.57,1.49320897]
[1749503966538,2.18147788,664.15,663.56,1.49320897]
[1749503966735,1.17163866,664.14,663.56,1.49320897]
[1749503966932,1.50971417,664.16,663.56,1.49320897]
[1749503967234,1.50970733,664.16,663.56,1.49320897]